Cogmind - Beta 15 @@@ ROGUE MODE // 2025.09.16 @ 14:49:29 Player: TapeIsSticky Result: Self-destructed Performance ------------- Evolutions (0) 0 Regions Visited (3) 600 Robots Destroyed (43) 215 Value Destroyed (892) 892 Prototype IDs (0) 0 Alien Tech Used (0) 0 Bonus (0) 0 TOTAL SCORE: 1707 Bonus ------- None Cogmind --------- Core Integrity 65/250 Matter 300/300 Energy 250/250 System Corruption 0% Temperature Cool (0) Movement Rolling (155) Ox5 Location -7/Recycling Parts ------- > --- POWER (1) -------- Ion Engine > --- PROPULSION (2) --- Light Treads Wheel > --- UTILITY (2) ------ High-capacity Storage Unit Seismic Detector > --- WEAPON (2) ------- Light Cannon Light Cannon > --- INVENTORY (20) --- Light Treads Compact Wheel Cooling System Small Storage Unit Seismic Detector Transport Network Coupler Targeting Computer EM Pulse Gun Medium Laser Particle Cannon Particle Cannon Light Cannon Rocket Launcher Rocket Launcher Mini Grenade Launcher Mini Grenade Launcher Peak State ------------ > --- POWER ------------ Ion Engine > --- PROPULSION ------- Light Treads Wheel > --- UTILITY ---------- High-capacity Storage Unit Seismic Detector > --- WEAPON ----------- Light Cannon Mini Grenade Launcher > --- INVENTORY -------- Compact Wheel Cooling System Small Storage Unit Seismic Detector Transport Network Coupler Targeting Computer EM Pulse Gun Medium Laser Particle Cannon Particle Cannon Light Cannon Light Cannon Rocket Launcher Rocket Launcher Mini Grenade Launcher [Rating: 10] Favorites ----------- Power Ion Engine Engine Ion Engine Propulsion Light Treads Treads Light Treads Wheel Wheel Utility Seismic Detector Device Seismic Detector Storage High-capacity Storage Unit Weapon Light Cannon Energy Gun Medium Laser Ballistic Gun Assault Rifle Ballistic Cannon Light Cannon Launcher Mini Grenade Launcher Build | -11 -10 -10 -7 ------- Run | Yrd Mat Sub Rec Slots Evolved . | . . . . Power . | . . . . Propulsion . | . . . . Utility . | . . . . Weapon . | . . . . Parts Attached 19 | 7 10 2 . Power 3 | 1 2 . . Engine 3 | 1 2 . . Core . | . . . . Reactor . | . . . . Propulsion 4 | 2 2 . . Treads 3 | 2 1 . . Leg . | . . . . Wheel 1 | . 1 . . Hover . | . . . . Flight . | . . . . Utility 4 | 2 2 . . Device 2 | 1 1 . . Storage 2 | 1 1 . . Processor . | . . . . Hackware . | . . . . Protection . | . . . . Artifact . | . . . . Weapon 8 | 2 4 2 . Energy Gun 1 | 1 . . . Energy Cannon . | . . . . Ballistic Gun 1 | 1 . . . Ballistic Cannon 5 | . 4 1 . Launcher 1 | . . 1 . Special Weapon . | . . . . Impact Weapon . | . . . . Slashing Weapon . | . . . . Piercing Weapon . | . . . . Special Melee Weapon . | . . . . Unidentified Prototypes . | . . . . Parts Lost 6 | . 6 . . Power 1 | . 1 . . Propulsion 2 | . 2 . . Utility 1 | . 1 . . Weapon 2 | . 2 . . Highest Loss Streak 4 | . 4 . . To Critical Strikes . | . . . . Average Backups 13 | 2 14 15 15 Power . | . . . . Propulsion 1 | . 1 1 1 Utility 3 | . 3 5 5 Weapon 8 | . 8 9 9 Tool/Special . | . . . . Unused Backups 15 | . 3 . 12 Power . | . . . . Propulsion 2 | . . . 2 Utility 4 | . . . 4 Weapon 9 | . 3 . 6 Tool/Special . | . . . . Average Slot Usage (%) 98 | . 97 100 100 Engine 13 | . 13 14 14 Treads 19 | . 22 14 14 Wheel 7 | . 4 14 14 Device 13 | . 13 14 14 Storage 14 | . 14 14 14 Energy Gun 6 | . 8 . . Ballistic Gun 2 | . 3 . . Ballistic Cannon 18 | . 14 27 28 Peak Build Rating 10 | 7 9 10 9 Average Rating 8 | 6 8 9 9 On Entrance 6 | . 7 9 9 Naked Turns . | . . . . Heaviest Build 52 | 15 52 52 52 Greatest Support 40 | 40 40 10 10 Greatest Overweight (x) 16 | 1 16 5 5 Average Overweight (x) 3 | . 2 4 5 Largest Inventory Capacity 20 | 8 20 20 20 Average Capacity 18 | 7 19 20 20 Most Carried 19 | 4 19 15 16 Average Carried 13 | 2 15 15 15 Final Capacity 20 | 8 20 20 20 Final Carried 16 | 4 15 15 16 Class Distribution -------------------- 100% | Mutant Dominant Class ---------------- Mutant | -10/Materials Mutant | -10/Subcaves Mutant | -7/Recycling Resources | -11 -10 -10 -7 ----------- Run | Yrd Mat Sub Rec Matter Collected 1032 | 339 539 29 125 Remotely . | . . . . Salvage Created 1275 | 255 793 24 203 Parts 77 | 28 37 5 7 Haulers Intercepted 2 | . 2 . . Recyclers Shooed 7 | 1 4 . 2 Parts Field Recycled . | . . . . Retrieved Matter . | . . . . Parts Self-Destructed 10 | . . 10 . Prevented . | . . . . Kills | -11 -10 -10 -7 ------- Run | Yrd Mat Sub Rec Combat Hostiles Destroyed 23 | . 19 3 1 Guns 8 | . 8 . . Cannons 15 | . 11 3 1 Classes Destroyed 9 | 3 5 . 1 Worker 2 | 2 . . . Tunneler 9 | 9 . . . Hauler 2 | . 2 . . Recycler 3 | 1 . . 2 Operator 1 | . 1 . . Watcher 3 | . 3 . . Swarmer 5 | . 2 3 . Grunt 17 | . 17 . . Sentry 1 | . . . 1 Best Kill Streak 6 | 6 5 3 3 Combat Bots Only 5 | . 5 3 1 Max Kills in Single Turn 1 | 1 1 1 1 Gunslinging . | . . . . Exploded . | . . . . Melee . | . . . . Uniques/NPCs Destroyed . | . . . . Combat | -11 -10 -10 -7 -------- Run | Yrd Mat Sub Rec Hostile Shots Fired 126 | . 96 12 18 Missed 35 | . 24 4 7 Hits 91 | . 72 8 11 Projectile 91 | . 72 8 11 Damage Taken 1095 | . 934 70 91 Core 185 | . 145 24 16 Absorbed by Shields . | . . . . Regen/Repaired (Parts) 124 | . 124 . . Core Remaining (%) 100 | 100 . . . Volleys Fired 123 | 23 84 9 7 Largest 2 | 2 2 2 2 Hottest 80 | 70 80 60 60 Shots Fired 240 | 46 165 15 14 Gun 137 | 46 91 . . Cannon 100 | . 74 12 14 Launcher 3 | . . 3 . Special . | . . . . Kinetic 153 | 23 104 12 14 Thermal 84 | 23 61 . . Explosive 3 | . . 3 . Electromagnetic . | . . . . Robot Hit Streak 13 | 13 8 2 8 Robot Miss Streak 4 | 2 3 4 2 Penetration Max . | . . . . Secondary Targets . | . . . . Shots Hit Robots 150 | 30 106 5 9 Core Hits 61 | 12 40 3 6 Critical Kills . | . . . . Critical Parts Destroyed . | . . . . Critical Strikes 9 | 2 6 1 . Burn 5 | 2 3 . . Blast 4 | . 3 1 . Melee Attacks . | . . . . Impact . | . . . . Slashing . | . . . . Piercing . | . . . . Sneak Attacks . | . . . . Combat Hostiles . | . . . . Follow-up Attacks . | . . . . Damage Inflicted 2204 | 375 1583 89 157 Guns 1115 | 375 740 . . Cannons 1042 | . 809 89 144 Explosions . | . . . . Melee . | . . . . Ramming 47 | . 34 . 13 Kinetic 1431 | 151 1047 89 144 Thermal 726 | 224 502 . . Explosive . | . . . . Electromagnetic . | . . . . Impact . | . . . . Slashing . | . . . . Piercing . | . . . . Highest Corruption . | . . . . Average Corruption . | . . . . Corruption Purged . | . . . . Corruption Blocked . | . . . . Overload Shots . | . . . . Overflow Damage 6 | . 6 . . Projectiles 6 | . 6 . . Explosions . | . . . . Melee . | . . . . Knockbacks 8 | . 7 1 . Impact . | . . . . Kinetic 8 | . 7 1 . Secondary . | . . . . Self-Inflicted Damage 9 | . 3 . 6 Shots . | . . . . Rammed 9 | . 8 . 1 Targets Rammed 10 | 1 8 . 1 Kicked . | . . . . Crushed 1 | 1 . . . Highest Temperature 286 | 54 286 . 30 Average Temperature 55 | 20 66 . 23 Received Heat Transfer 516 | . 486 . 30 Siege Activations . | . . . . Martial Activations . | . . . . Shielding Activations . | . . . . Robots Disrupted . | . . . . Combat Hostiles . | . . . . Robots Corrupted . | . . . . Combat Hostiles . | . . . . Parts Fried . | . . . . Impact Corruptions . | . . . . Robots Melted . | . . . . Combat Hostiles . | . . . . Parts Melted 2 | 1 1 . . Heat Transferred 2516 | 814 1702 . . Parts Sabotaged . | . . . . Parts Stolen . | . . . . Parts Stripped . | . . . . Power Chain Reactions . | . . . . Alert | -11 -10 -10 -7 ------- Run | Yrd Mat Sub Rec Maximum Alert Level . | . . . . Low Security (%) 100 | 100 100 . 100 Level 1 . | . . . . Level 2 . | . . . . Level 3 . | . . . . Level 4 . | . . . . Level 5 . | . . . . High Security . | . . . . Max Security . | . . . . Peak Influence 160 | 15 160 . 118 Initial 28 | . . . 28 Average 46 | 2 54 . 38 Influence Increases 971 | 60 586 100 225 Destroy 0b10 Robot/C 460 | . 380 60 20 Destroy 0b10 Robot/NC 100 | 60 30 . 10 Destroy Leader 100 | . 90 10 . Successful Hack 20 | . 5 . 15 Select Force Hacks 180 | . . . 180 Disable Machine 30 | . 30 . . Destroy Structure 6 | . 6 . . Lose Combat Pursuer 75 | . 45 30 . Influence Decreases 941 | 60 549 77 255 Entered New Map 50 | . . 18 32 Time Decay 831 | 60 489 59 223 Lost Part 60 | . 60 . . Squads Dispatched 4 | . 4 . . Investigation 1 | . 1 . . Extermination . | . . . . Reinforcement 3 | . 3 . . Assault . | . . . . Garrison . | . . . . Intercept . | . . . . Searches Triggered . | . . . . Construction Impeded . | . . . . Haulers Reinforced . | . . . . Active Scanning Responses . | . . . . Cargo Convoy Interrupts . | . . . . Stealth | -11 -10 -10 -7 --------- Run | Yrd Mat Sub Rec Distress Signals 3 | . 3 . . Communications Jammed . | . . . . Distress Signals . | . . . . Times Spotted 38 | . 30 7 1 Peak Tracking Total 9 | . 9 5 1 Tactical Retreats 4 | . 3 1 . Traps | -11 -10 -10 -7 ------- Run | Yrd Mat Sub Rec Traps Triggered 6 | . 6 . . Indirectly . | . . . . Trap Hack Attempts . | . . . . Triggered . | . . . . Disarmed . | . . . . Reprogrammed . | . . . . Reused . | . . . . Traps Extracted . | . . . . Installed . | . . . . Triggered . | . . . . Machines | -11 -10 -10 -7 ---------- Run | Yrd Mat Sub Rec Machines Disabled 2 | . 2 . . Max in Single Turn 1 | . 1 . . Machines Repaired . | . . . . Machines Dismantled . | . . . . Machines Sabotaged . | . . . . Overloaded Fab Kills . | . . . . Hacking | -11 -10 -10 -7 --------- Run | Yrd Mat Sub Rec Machines Accessed 16 | . 6 1 9 Terminals 7 | . 4 . 3 Fabricators . | . . . . Repair Stations 1 | . 1 . . Recycling Units 7 | . 1 . 6 Scanalyzers . | . . . . Garrison Access . | . . . . Total Hacks 36 | . 14 4 18 Successful 23 | . 9 4 10 Failed 12 | . 4 . 8 Catastrophic 1 | . 1 . . Database Lockouts 1 | . 1 . . Manual 25 | . 10 . 15 Terminals 21 | . 10 . 11 Fabricators . | . . . . Repair Stations 2 | . 2 . . Recycling Units 9 | . 2 . 7 Scanalyzers . | . . . . Garrison Access . | . . . . Terminal Hacks 6 | . 1 4 1 Record 4 | . . 4 . Robot Analysis 2 | . 1 . 1 Fabricator Hacks . | . . . . Repair Station Hacks 2 | . 2 . . Scan Component 1 | . 1 . . Repair 1 | . 1 . . Recycling Unit Hacks 1 | . 1 . . Retrieve Components 1 | . 1 . . Scanalyzer . | . . . . Garrison Access Hacks . | . . . . Unauthorized Hacks 14 | . 5 . 9 Terminals 8 | . 5 . 3 Botnet 2 | . 1 . 1 Skim 6 | . 4 . 2 Fabricators . | . . . . Repair Stations . | . . . . Recycling Units 6 | . . . 6 Tunnel 6 | . . . 6 Scanalyzers . | . . . . Garrison Access . | . . . . Data Cores Recovered . | . . . . Used . | . . . . Hacking Detections 7 | . 3 . 4 Full Trace Events 2 | . . . 2 Feedback Events . | . . . . Feedback Blocked . | . . . . Robot Schematics Acquired . | . . . . Robots Built . | . . . . Authchips . | . . . . Time . | . . . . Total Robot Build Rating . | . . . . Part Schematics Acquired . | . . . . Parts Built . | . . . . Authchips . | . . . . Time . | . . . . Total Part Build Rating . | . . . . Parts Repaired 1 | . 1 . . Time 26 | . 26 . . Parts Recycled . | . . . . Recycled Matter . | . . . . Retrieved Matter . | . . . . Retrieved Components 9 | . 9 . . Parts Scanalyzed . | . . . . Part Schematics Acquired . | . . . . Parts Damaged . | . . . . Bothacking | -11 -10 -10 -7 ------------ Run | Yrd Mat Sub Rec Used RIF Installer . | . . . . Robots Hacked . | . . . . Non-combat . | . . . . Combat . | . . . . Robot Hacks Applied . | . . . . Relay Couplers Released . | . . . . Fabnet Peak Effective % . | . . . . Robots Rewired . | . . . . Allies Hacked . | . . . . Hacks Repelled . | . . . . Allies | -11 -10 -10 -7 -------- Run | Yrd Mat Sub Rec Total Allies . | . . . . Largest Group . | . . . . Highest-Rated Group . | . . . . Highest-Rated Ally . | . . . . Total Orders . | . . . . Ally Attacks . | . . . . Total Damage . | . . . . Kills . | . . . . Allies Corrupted . | . . . . Allies Melted . | . . . . Intel | -11 -10 -10 -7 ------- Run | Yrd Mat Sub Rec Active Infowar (turns) 3050 | 183 2023 246 598 Seismic 3050 | 183 2023 246 598 Robot Analysis Total 2 | . 1 . 1 Derelict Logs Recovered . | . . . . Drone Launches . | . . . . Drone Recoveries . | . . . . Exploration | -11 -10 -10 -7 ------------- Run | Yrd Mat Sub Rec Turns Passed 3229 | 281 2104 246 598 Spaces Moved 1342 | 90 740 142 370 Core 18 | 15 3 . . Treads 542 | 75 467 . . Legs . | . . . . Wheels 782 | . 270 142 370 Hover . | . . . . Flight . | . . . . Fastest Speed 50 | 50 140 140 155 Average Speed 183 | 143 207 154 155 Slowest Speed 850 | 160 850 155 155 Overloaded Moves . | . . . . Propulsion Burnouts . | . . . . Robots Hopped . | . . . . Potential Cave-ins . | . . . . Cave-ins Triggered . | . . . . Exploration Rate (%) 44 | 7 96 13 62 Regions Visited 3 Branch Regions 2 Pre-discovered Areas 6 | . . . 6 Known Exits Taken 1 | . . 1 . Unknown Exits Taken 2 | 1 1 . . Scrap Searched . | . . . . Spaces Dug 26 | . . 26 . Terrain Destroyed 26 | . . 26 . Melee . | . . . . Projectile . | . . . . AOE 26 | . . 26 . Terrain Rammed . | . . . . Walls Destroyed . | . . . . Machines Disabled . | . . . . Actions | -11 -10 -10 -7 --------- Run | Yrd Mat Sub Rec Total 1852 | 192 1129 152 379 Wait 324 | 68 256 . . Move 1339 | 89 739 141 370 Hop . | . . . . Pick Up 25 | 4 20 . 1 Fast Attach 17 | 7 10 . . Attach 7 | . 7 . . Detach . | . . . . Swap 4 | . 2 2 . Drop 3 | . 3 . . Fire 123 | 23 84 9 7 Melee . | . . . . Ram 2 | . 1 . 1 Kick . | . . . . Crush 8 | 1 7 . . Escape Stasis . | . . . . Rewire . | . . . . Trap . | . . . . Miscellaneous . | . . . . Route ------- -11/Scrapyard -10/Materials (discovered 6 exits: [*Mat x3] / [*Min x2] / *Sub) -10/Subcaves -7/Recycling (discovered 1 exit: [*Fac]) History --------- Turn | Location | Event 2 | -11/Scrapyard | Met Revision 17 4 | -11/Scrapyard | Discovered new exit (range 15) 282 | -11/Scrapyard | Entered Materials 302 | -10/Materials | Build established: Mutant 854 | -10/Materials | Core integrity fell below 50% 860 | -10/Materials | Lost 4 parts (1p1n1u1w) 969 | -10/Materials | Discovered new exit (range 10) 984 | -10/Materials | Discovered new exit (range 5) 1106 | -10/Materials | Central database locked down 1347 | -10/Materials | Discovered new exit (range 14) 1436 | -10/Materials | Discovered new exit (range 9) 1708 | -10/Materials | Discovered new exit (range 7) 1885 | -10/Materials | Repaired Lgt. Treads 2107 | -10/Materials | Discovered new exit (range 8) 2386 | -10/Materials | Entered Subcaves 2387 | -10/Subcaves | Approached by a straggling Scientist 2466 | -10/Subcaves | Visited Clippyterm 2470 | -10/Subcaves | Identified exit to Recycling 2632 | -10/Subcaves | Entered Recycling 3080 | -7/Recycling | Discovered new exit (range 15) 3230 | -7/Recycling | Self-destructed Last Messages --------------- 02952_ Connecting with Terminal... 03080_ EXIT=FOUND 03094_ Y-54 Guardian springs to life. 03100_ Y-54 Guardian destroyed. 03105_ R-06 Scavenger collects Flak Gun. 03110_ R-06 Scavenger collects Gatling Laser. 03111_ R-06 Scavenger destroyed. 03114_ R-06 Scavenger collects Lgt. Treads. 03114_ R-06 Scavenger destroyed. 03122_ Acquired 94 matter. 03128_ Acquired 31 matter. 03131_ Acquired Lgt. Treads. 03136_ R-06 Scavenger collects Lgt. Ion Engine. 03142_ R-06 Scavenger collects Com. Wheel. 03146_ Slammed into R-06 Scavenger. 03147_ R-06 Scavenger collects Gatling Laser. 03150_ R-06 Scavenger collects Tractor Beam. 03225_ Connecting with Recycling Unit... >>Force(Tunnel) DISCOVERED[-7/Storage] Map ----- +----------------------------------------------------+ | | | | | | | | | | | | | | | | | | | ?????????????????????????????????????????????????? | | ?????????????????????????????????????????????????? | | ?????????????????????????????????????????????????? | | ?????????????????????????????????????????????????? | | ?????????????????????????????????????????????????? | | ?????????????????????????????????????????????????? | | ?????????????????????????????????????????????????? | | ?????????????????????????????????????????????????? | | ?????????????????????????????????????????????????? | | ?????????????????????????????????????????????????? | | ?????????????????????????????????????????????????? | | ????????????????????????????????????????###??????? | | ????????????????????????????????????##### #####??? | | ?????????????????????????#####??????# #??? | | ?????????????????????????#"""#??????# #??? | | ?????????????????##"Y"####"Y"#####??# #### | | ?????????????????+ @ #??# + | | ?????????????????##Y######### #??# # | | #########???????????????????# #??# # | | #???????????????????# #??# + | | #???????????????????# #??# # | | """ #???????????????????# #####+#####+## | | """ #???????????????????# | | """ """ #???????????????????# ######## ########### | | "Y #???????????????????#+#??????# #???????# | | """ #????????????????????????????#+######### < | | #????????????????????????????# # | | #########????????????????????????????# # | | ?????????????????????????????????????# # | | ?????????????????????????????????????# + | | ###### ?????????????????????????????# # | | ????????????????????????????## # | | ?????????????????????????????# # | | ?????????????????????????????# # | | #######??????????????????????????????######### # | | ?????????????????????????????????????????????### | | ???????????????????????????????????????????????# | | ???????????????????????????????????????????????# | | ???????????????????????????????????????????????# | | ??????????????????????????????????############## | | ?????????????????????????????????? | +----------------------------------------------------+ Best States ------------- Heat Dissipation 25 Energy Generation 10 Energy Capacity 250 Matter Stores 300 Matter Capacity 300 Sight Range 16 Terrain Scan Density 10 Evasion (%) 50 Recoil Reduction 2 Item Schematics ----------------- None Robot Schematics ------------------ None Fabricated ------------ Nothing Repaired ---------- Lgt. Treads | 11% | -10/Materials Alien Tech Used ----------------- None Achievements -------------- None Challenges ------------ None Game ------ Seed PulseChromionFlakker Manual? 0 Play Time 00:14:39 Cumulative 206.8 hours Start 2025.09.15 @ 21:42:15 End 2025.09.16 @ 14:49:29 Sessions 2 Manual Loads 0 Difficulty Rogue Special Mode None Game No. 114 Rogue 114 Adventurer 0 Explorer 0 Win Type - Total 23 Types 10/1/8/1/0/1/1/1/0/0 Lore% 76 Gallery% 67 Achievement% 72 Wizard Run 0 Options --------- Layout 1 ASCII 0 Keyboard 0 Movement Arrows Keybinds 0 Fullscreen 2 Font 24/Tamsyn Map View 50x35 Zoom Use 0% Tactical HUD 1 Map Filters NONE Filters NONE Steam 1 RUN: 4975bc63-d33c-4d29-b3d8-34fdfb09dc37